Cogmind - Beta 13 @@@ ROGUE MODE // 2024.04.05 @ 18:48:24 Player: Derauth Result: Destroyed by G-34 Mercenary with Small Laser Performance ------------- Evolutions (0) 0 Regions Visited (2) 400 Robots Destroyed (14) 70 Value Destroyed (338) 338 Prototype IDs (0) 0 Alien Tech Used (0) 0 Bonus (0) 0 TOTAL SCORE: 808 Bonus ------- None Cogmind --------- Core Integrity 0/250 Matter 300/300 Energy 244/250 System Corruption 0% Temperature Cool (6) Movement Walking (120) Location -10/Mines Parts ------- > --- POWER (1) -------- (None) > --- PROPULSION (2) --- Aluminum Leg > --- UTILITY (2) ------ Heat Sink Medium Battery > --- WEAPON (2) ------- (None) > --- INVENTORY (5) ---- Heat Sink Improved Heat Sink Peak State ------------ > --- POWER ------------ Ion Engine > --- PROPULSION ------- Light Treads Light Treads > --- UTILITY ---------- Heat Sink Heat Sink > --- WEAPON ----------- Medium Laser Medium Laser > --- INVENTORY -------- (None) [Rating: 7] Favorites ----------- Power Ion Engine Engine Ion Engine Propulsion Light Treads Treads Light Treads Leg Aluminum Leg Utility Heat Sink Device Heat Sink Storage Medium Battery Processor Signal Interpreter Weapon Medium Laser Energy Gun Medium Laser Ballistic Gun Assault Rifle Build | -11 -10 -10 ------- Run | Yrd Mat Min Slots Evolved . | . . . Power . | . . . Propulsion . | . . . Utility . | . . . Weapon . | . . . Parts Attached 18 | 6 6 6 Power 1 | 1 . . Engine 1 | 1 . . Core . | . . . Reactor . | . . . Propulsion 5 | 2 . 3 Treads 2 | 2 . . Leg 3 | . . 3 Wheel . | . . . Hover . | . . . Flight . | . . . Utility 8 | 1 4 3 Device 5 | . 2 3 Storage 2 | 1 1 . Processor 1 | . 1 . Hackware . | . . . Protection . | . . . Artifact . | . . . Weapon 4 | 2 2 . Energy Gun 2 | . 2 . Energy Cannon . | . . . Ballistic Gun 2 | 2 . . Ballistic Cannon . | . . . Launcher . | . . . Special Weapon . | . . . Impact Weapon . | . . . Slashing Weapon . | . . . Piercing Weapon . | . . . Special Melee Weapon . | . . . Unidentified Prototypes . | . . . Parts Lost 7 | . . 7 Power 1 | . . 1 Propulsion 4 | . . 4 Utility . | . . . Weapon 2 | . . 2 Highest Loss Streak 2 | . . 2 To Critical Strikes . | . . . Average Slot Usage (%) 78 | . 97 63 Engine 10 | . 14 7 Treads 18 | . 28 9 Leg 3 | . . 6 Device 16 | . 21 13 Storage 9 | . 3 14 Processor 1 | . 2 . Energy Gun 17 | . 26 9 Naked Turns . | . . . Heaviest Build 14 | 14 14 10 Greatest Support 40 | 40 40 20 Greatest Overweight (x) 1 | 1 . . Average Overweight (x) . | . . . Largest Inventory Capacity 8 | 8 8 5 Average Capacity 5 | 7 5 5 Most Carried 2 | . 2 2 Average Carried . | . . 1 Final Capacity 8 | 8 5 5 Final Carried 2 | . 2 2 Class Distribution -------------------- 100% | Mutant Dominant Class ---------------- Mutant | -10/Materials Mutant | -10/Mines Resources | -11 -10 -10 ----------- Run | Yrd Mat Min Matter Collected 350 | 112 136 102 Remotely . | . . . Salvage Created 506 | . 162 344 Parts 21 | . 8 13 Haulers Intercepted . | . . . Recyclers Shooed 1 | . 1 . Parts Field Recycled . | . . . Retrieved Matter . | . . . Parts Self-Destructed . | . . . Prevented . | . . . Kills | -11 -10 -10 ------- Run | Yrd Mat Min Combat Hostiles Destroyed 10 | . 3 7 Melee 1 | . . 1 Guns 9 | . 3 6 Classes Destroyed 4 | . 3 1 Recycler 2 | . 1 1 Watcher 2 | . 2 . Swarmer 3 | . 3 . Grunt 7 | . . 7 Best Kill Streak 4 | . 4 4 Combat Bots Only 4 | . 3 4 Max Kills in Single Turn 1 | . 1 1 Gunslinging . | . . . Exploded . | . . . Melee 1 | . . 1 Uniques/NPCs Destroyed . | . . . Combat | -11 -10 -10 -------- Run | Yrd Mat Min Hostile Shots Fired 107 | . 14 93 Missed 37 | . 3 34 Damage Taken 965 | . 87 878 Core 250 | . 17 233 Absorbed by Shields . | . . . Core Remaining (%) 100 | 100 . . Volleys Fired 59 | . 10 49 Largest 2 | . 2 2 Hottest 100 | . 100 100 Shots Fired 79 | . 20 59 Gun 79 | . 20 59 Cannon . | . . . Launcher . | . . . Special . | . . . Kinetic . | . . . Thermal 79 | . 20 59 Explosive . | . . . Electromagnetic . | . . . Robot Hit Streak 6 | . 4 6 Robot Miss Streak 5 | . 3 5 Penetration Max . | . . . Secondary Targets 2 | . 2 . Max Gunslinging Chain 1 | . 1 . Shots Hit Robots 44 | . 9 35 Core Hits 32 | . 6 26 Critical Kills . | . . . Critical Parts Destroyed . | . . . Critical Strikes 6 | . 3 3 Burn 6 | . 3 3 Melee Attacks . | . . . Impact . | . . . Slashing . | . . . Piercing . | . . . Sneak Attacks . | . . . Combat Hostiles . | . . . Follow-up Attacks . | . . . Damage Inflicted 685 | . 127 558 Guns 604 | . 127 477 Cannons . | . . . Explosions . | . . . Melee . | . . . Ramming 81 | . . 81 Kinetic . | . . . Thermal 604 | . 127 477 Explosive . | . . . Electromagnetic . | . . . Impact . | . . . Slashing . | . . . Piercing . | . . . Highest Corruption . | . . . Average Corruption . | . . . Corruption Purged . | . . . Corruption Blocked . | . . . Overload Shots . | . . . Overflow Damage . | . . . Projectiles . | . . . Explosions . | . . . Melee . | . . . Knockbacks . | . . . Impact . | . . . Kinetic . | . . . Secondary . | . . . Self-Inflicted Damage 13 | . . 13 Shots . | . . . Rammed 8 | . . 8 Targets Rammed 62 | . . 62 Kicked 54 | . . 54 Crushed . | . . . Highest Temperature 389 | . . 389 Average Temperature 263 | . . 263 Received Heat Transfer 489 | . . 489 Effects 2 | . . 2 Shutdowns 1 | . . 1 Energy Bleed 1 | . . 1 Siege Activations . | . . . Robots Corrupted . | . . . Combat Hostiles . | . . . Parts Fried . | . . . Impact Corruptions . | . . . Robots Melted 1 | . 1 . Combat Hostiles . | . . . Parts Melted 4 | . 2 2 Heat Transferred 2220 | . 592 1628 Parts Sabotaged . | . . . Parts Stolen . | . . . Parts Stripped . | . . . Power Chain Reactions . | . . . Alert | -11 -10 -10 ------- Run | Yrd Mat Min Peak Influence 125 | . 104 125 Initial . | . . . Average 67 | . 73 70 Maximum Alert Level . | . . . Low Security (%) 100 | 100 100 100 Level 1 . | . . . Level 2 . | . . . Level 3 . | . . . Level 4 . | . . . Level 5 . | . . . High Security . | . . . Max Security . | . . . Squads Dispatched . | . . . Investigation . | . . . Extermination . | . . . Reinforcement . | . . . Assault . | . . . Garrison . | . . . Intercept . | . . . Searches Triggered . | . . . Construction Impeded . | . . . Haulers Reinforced . | . . . Active Scanning Responses . | . . . Cargo Convoy Interrupts . | . . . Stealth | -11 -10 -10 --------- Run | Yrd Mat Min Distress Signals . | . . . Communications Jammed . | . . . Distress Signals . | . . . Times Spotted 15 | . 5 10 Peak Tracking Total 3 | . 3 3 Tactical Retreats 2 | . . 2 Traps | -11 -10 -10 ------- Run | Yrd Mat Min Traps Triggered . | . . . Indirectly . | . . . Trap Hack Attempts . | . . . Triggered . | . . . Disarmed . | . . . Reprogrammed . | . . . Reused . | . . . Traps Extracted . | . . . Installed . | . . . Triggered . | . . . Machines | -11 -10 -10 ---------- Run | Yrd Mat Min Machines Disabled . | . . . Max in Single Turn . | . . . Machines Repaired . | . . . Machines Dismantled . | . . . Machines Sabotaged . | . . . Overloaded Fab Kills . | . . . Hacking | -11 -10 -10 --------- Run | Yrd Mat Min Machines Accessed 3 | . 3 . Terminals 3 | . 3 . Fabricators . | . . . Repair Stations . | . . . Recycling Units . | . . . Scanalyzers . | . . . Garrison Access . | . . . Total Hacks 8 | . 8 . Successful 3 | . 3 . Failed 5 | . 5 . Catastrophic 1 | . 1 . Database Lockouts . | . . . Manual . | . . . Terminals 8 | . 8 . Fabricators . | . . . Repair Stations . | . . . Recycling Units . | . . . Scanalyzers . | . . . Garrison Access . | . . . Terminal Hacks 3 | . 3 . Branch Access Points 1 | . 1 . Hauler Manifests 1 | . 1 . Zone Layout 1 | . 1 . Fabricator Hacks . | . . . Repair Station Hacks . | . . . Recycling Unit Hacks . | . . . Scanalyzer . | . . . Garrison Access Hacks . | . . . Unauthorized Hacks . | . . . Terminals . | . . . Fabricators . | . . . Repair Stations . | . . . Recycling Units . | . . . Scanalyzers . | . . . Garrison Access . | . . . Data Cores Recovered . | . . . Used . | . . . Hacking Detections 3 | . 3 . Full Trace Events . | . . . Feedback Events . | . . . Feedback Blocked . | . . . Robot Schematics Acquired . | . . . Robots Built . | . . . Authchips . | . . . Time . | . . . Total Robot Build Rating . | . . . Part Schematics Acquired . | . . . Parts Built . | . . . Authchips . | . . . Time . | . . . Total Part Build Rating . | . . . Parts Repaired . | . . . Time . | . . . Parts Recycled . | . . . Recycled Matter . | . . . Retrieved Matter . | . . . Retrieved Components . | . . . Parts Scanalyzed . | . . . Part Schematics Acquired . | . . . Parts Damaged . | . . . Bothacking | -11 -10 -10 ------------ Run | Yrd Mat Min Used RIF Installer . | . . . Robots Hacked . | . . . Non-combat . | . . . Combat . | . . . Robot Hacks Applied . | . . . Relay Couplers Released . | . . . Fabnet Peak Effective % . | . . . Robots Rewired . | . . . Allies Hacked . | . . . Hacks Repelled . | . . . Allies | -11 -10 -10 -------- Run | Yrd Mat Min Total Allies . | . . . Largest Group . | . . . Highest-Rated Group . | . . . Highest-Rated Ally . | . . . Total Orders . | . . . Ally Attacks . | . . . Total Damage . | . . . Kills . | . . . Allies Corrupted . | . . . Allies Melted . | . . . Intel | -11 -10 -10 ------- Run | Yrd Mat Min Robot Analysis Total . | . . . Derelict Logs Recovered 1 | . . 1 Drone Launches . | . . . Drone Recoveries . | . . . Exploration | -11 -10 -10 ------------- Run | Yrd Mat Min Turns Passed 938 | 66 401 471 Spaces Moved 476 | 40 225 211 Core 37 | 8 . 29 Treads 375 | 32 225 118 Legs 64 | . . 64 Wheels . | . . . Hover . | . . . Flight . | . . . Fastest Speed 50 | 50 160 50 Average Speed 146 | 145 160 132 Slowest Speed 160 | 160 160 160 Overloaded Moves . | . . . Propulsion Burnouts . | . . . Robots Hopped . | . . . Cave-ins Triggered . | . . . Exploration Rate (%) 33 | 3 42 56 Regions Visited 2 Branch Regions 1 Pre-discovered Areas . | . . . Known Exits Taken 1 | . 1 . Unknown Exits Taken 1 | 1 . . Scrap Searched . | . . . Spaces Dug . | . . . Terrain Destroyed . | . . . Melee . | . . . Projectile . | . . . AOE . | . . . Terrain Rammed . | . . . Walls Destroyed . | . . . Machines Disabled . | . . . Actions | -11 -10 -10 --------- Run | Yrd Mat Min Total 618 | 45 245 328 Wait . | . . . Move 474 | 39 224 211 Hop . | . . . Pick Up 2 | . 2 . Fast Attach 13 | 6 4 3 Attach . | . . . Detach . | . . . Swap 5 | . 2 3 Drop 3 | . 3 . Fire 59 | . 10 49 Melee . | . . . Ram 7 | . . 7 Kick 54 | . . 54 Crush 1 | . . 1 Escape Stasis . | . . . Rewire . | . . . Trap . | . . . Miscellaneous . | . . . Route ------- -11/Scrapyard -10/Materials (discovered 3 exits: *Mat / *Min x2) -10/Mines (discovered 1 exit: *Mat) History --------- Turn | Location | Event 49 | -11/Scrapyard | Discovered new exit (range 12) 67 | -11/Scrapyard | Entered Materials 183 | -10/Materials | Discovered new exit (range 15) 254 | -10/Materials | Identified exit to Mines 296 | -10/Materials | Discovered new exit (range 15) 305 | -10/Materials | Build established: Mutant 456 | -10/Materials | Identified exit to Materials 468 | -10/Materials | Entered Mines 692 | -10/Mines | Excavation squad dispatched 692 | -10/Mines | A large section of the Mines collapsed 799 | -10/Mines | Discovered exit to Materials (range 6) 852 | -10/Mines | Core integrity fell below 50% 890 | -10/Mines | Core integrity fell below 20% 939 | -10/Mines | Destroyed by G-34 Mercenary with Small Laser Last Messages --------------- 00885_ Kicked G-34 Mercenary out of the way. 00885_ Aluminum Leg destroyed. 00886_ Kicked G-34 Mercenary. 00889_ K-01 Serf collects debris. 00889_ Kicked G-34 Mercenary out of the way. 00891_ Kicked G-34 Mercenary. 00898_ Kicked G-34 Mercenary out of the way. 00899_ Kicked G-34 Mercenary. 00907_ Aluminum Leg destroyed. 00908_ Slammed into G-34 Mercenary. 00915_ G-34 Mercenary destroyed. [Achievement: Fist Fight] 00915_ Imp. Heat Sink broken. 00915_ Destabilizing: Short circuit. 00916_ K-01 Serf collects debris. 00922_ Acquired 10 matter. 00923_ K-01 Serf collects debris. 00930_ Acquired Aluminum Leg. 00932_ Acquired 10 matter. Map ----- +----------------------------------------------------+ | ???????# ?# #??# #????## | | ???????# ## #??# #????# | | ???????# ## #??# #???## ### | | ???????# ##?# #??## #### | | ??????## ### #?## ##?# | | ??????# # ### ##??# | | ??????# #???# | | ???????# #??## | | ???????# #### #?## | | ??????## ##??## ## ## | | ?????## ##????###### | | ?????# ##??????????# | | ?????# ###?###???????## ### | | ?????# ##?## #????????#######?# | | ?????##%#### #???????????????## | | ??????# ### ######??????????# | | ??????# t #??????????# | | ??????## # ###### #??????????# | | ???????# ## ##???## #??????????# | | ??????? ## ##???##%%###????????## | | ??????##### ####?# %%%%##????????## | | ?????????## # ### %%%%%#?????????# | | ??# ###### t %%%%#?????????# | | ??# ### % ##????????# | | ????##### gt ##?##" %% ####?????# | | ????????# @ t###??## % " ####### | | ????????# ##????#% % | | ????????# ###????##%%%% ###### | | ?########%###???## #????? | | ?# #??## #### #???? | | ?# % #?## ##??######???? | | ## ### ##????????????? | | ?# %## ######????????? | | ?# ## #????????? | | ## ## ### #????????? | | ## t ###??####### #????????? | | ## ##??????## ########## | | ?# ##?????## ## | | ?# ##???### """ | | ?# ##??## """ #### | | ?# ##??# """ ##?# | | ## ##??# """ ### | | ## ##??## < ### | | ## ##???### #### #? | | ## ##?????####??## ##? | | ##""#########?????????????## ##?? | | ?########??????????????????#####??? | | ??????????????????????????????????? | | ??????????????????????????????????? | | ??????????????????????????????????? | +----------------------------------------------------+ Best States ------------- Heat Dissipation 45 Energy Generation 10 Energy Capacity 400 Matter Stores 300 Matter Capacity 300 Sight Range 16 Terrain Scan Density 10 Evasion (%) 55 Recoil Reduction 2 Item Schematics ----------------- None Robot Schematics ------------------ None Fabricated ------------ Nothing Alien Tech Used ----------------- None Achievements -------------- Fist Fight Challenges ------------ None Game ------ Seed TargetingGrapheneMonowheel Manual? 0 Play Time 00:09:08 Cumulative 10.9 hours Start 2024.04.05 @ 18:42:19 End 2024.04.05 @ 18:48:24 Sessions 1 Manual Loads 0 Difficulty Rogue Special Mode None Game No. 16 Rogue 15 Adventurer 1 Explorer 0 Win Type - Total 0 Types 0/0/0/0/0/0/0/0/0 Lore% 10 Gallery% 23 Achievement% 19 Wizard Run 0 Options --------- Layout 1 ASCII 0 Keyboard 0 Movement Mouse Keybinds 0 Fullscreen 1 Font 32/Terminus Map View 50x35 Zoom Use 0% Tactical HUD 1 Map Filters NONE Filters NONE Steam 1 RUN: 37865860-3f34-40de-8049-5bf3f605b744